[Event "*** Titled Tuesday Blitz"]
[Site "Chess.com"]
[Date "2021.02.16"]
[Round "8"]
[White "BikingBrian"]
[Black "milenapn"]
[Result "0-1"]
[WhiteElo "2301"]
[BlackElo "2135"]
[TimeControl "180+1"]
[EndTime "11:25:17 PST"]
[Termination "milenapn won by checkmate"]

1. d4 {[%clk 0:03:00.9]} 1... Nf6 {[%clk 0:02:59.5]} 2. Bg5 {[%clk 0:03:00.3]}
2... Ne4 {[%clk 0:02:58.7]} 3. Bf4 {[%clk 0:03:00]} 3... d5 {[%clk 0:02:59.2]}
4. f3 {[%clk 0:03:00.4]} 4... Nf6 {[%clk 0:02:57.9]} 5. e4 {[%clk 0:03:00.6]}
5... dxe4 {[%clk 0:02:57.3]} 6. Nc3 {[%clk 0:03:01.2]} 6... c5 {[%clk
0:02:53.2]} 7. d5 {[%clk 0:02:55.5]} 7... Qa5 {[%clk 0:02:43.1]} 8. Bxb8 {[%clk
0:02:39.5]} 8... Rxb8 {[%clk 0:02:40.5]} 9. Bb5+ {[%clk 0:02:39.5]} 9... Bd7
{[%clk 0:02:39.7]} 10. Bxd7+ {[%clk 0:02:39.1]} 10... Nxd7 {[%clk 0:02:39.2]}
11. fxe4 {[%clk 0:02:39.2]} 11... g6 {[%clk 0:02:37.7]} 12. Ne2 {[%clk
0:02:34.9]} 12... Bg7 {[%clk 0:02:37.7]} 13. O-O {[%clk 0:02:35.1]} 13... O-O
{[%clk 0:02:37.4]} 14. Qe1 {[%clk 0:02:07.1]} 14... b5 {[%clk 0:02:35.2]} 15.
Qh4 {[%clk 0:02:04.9]} 15... b4 {[%clk 0:02:27.6]} 16. Nd1 {[%clk 0:02:03.9]}
16... Qb5 {[%clk 0:02:18.1]} 17. Nf4 {[%clk 0:01:49]} 17... Bd4+ {[%clk
0:02:11.9]} 18. Kh1 {[%clk 0:01:45.9]} 18... Qxf1# {[%clk 0:02:10.2]} 0-1

[Event "*** Titled Tuesday Blitz"]
[Site "Chess.com"]
[Date "2021.02.16"]
[Round "8"]
[White "Pogosian_Manvel"]
[Black "noamapplesauce"]
[Result "1-0"]
[WhiteElo "2404"]
[BlackElo "2144"]
[TimeControl "180+1"]
[EndTime "11:25:26 PST"]
[Termination "Pogosian_Manvel won by resignation"]

1. d4 {[%clk 0:02:58.1]} 1... d5 {[%clk 0:02:56.9]} 2. c4 {[%clk 0:02:57.8]}
2... e6 {[%clk 0:02:56]} 3. Nc3 {[%clk 0:02:57.1]} 3... c6 {[%clk 0:02:55.2]} 4.
Nf3 {[%clk 0:02:48.4]} 4... Nf6 {[%clk 0:02:49.5]} 5. e3 {[%clk 0:02:45.4]} 5...
Nbd7 {[%clk 0:02:49.3]} 6. Bd3 {[%clk 0:02:40.3]} 6... dxc4 {[%clk 0:02:44.8]}
7. Bxc4 {[%clk 0:02:40.4]} 7... b5 {[%clk 0:02:45.3]} 8. Bd3 {[%clk 0:02:40.6]}
8... Bd6 {[%clk 0:02:45.7]} 9. O-O {[%clk 0:02:40.6]} 9... O-O {[%clk
0:02:45.7]} 10. Ng5 {[%clk 0:02:40.8]} 10... Bb7 {[%clk 0:02:32]} 11. Nce4
{[%clk 0:02:37.1]} 11... Nxe4 {[%clk 0:02:25]} 12. Nxe4 {[%clk 0:02:33.5]} 12...
Be7 {[%clk 0:02:25.1]} 13. a4 {[%clk 0:02:23.3]} 13... b4 {[%clk 0:02:12.4]} 14.
a5 {[%clk 0:02:21.6]} 14... c5 {[%clk 0:02:05.9]} 15. dxc5 {[%clk 0:02:17.9]}
15... Nxc5 {[%clk 0:02:03.8]} 16. Nxc5 {[%clk 0:02:16.6]} 16... Bxc5 {[%clk
0:01:46.8]} 17. Bxh7+ {[%clk 0:02:14.6]} 17... Kxh7 {[%clk 0:01:45.5]} 18. Qh5+
{[%clk 0:02:14.3]} 18... Kg8 {[%clk 0:01:43.7]} 19. Qxc5 {[%clk 0:02:14.6]}
19... Qg5 {[%clk 0:01:37.7]} 20. Qxg5 {[%clk 0:02:13.9]} 1-0

[Event "*** Titled Tuesday Blitz"]
[Site "Chess.com"]
[Date "2021.02.16"]
[Round "8"]
[White "RobertoJBM"]
[Black "dosto07"]
[Result "1-0"]
[WhiteElo "2699"]
[BlackElo "2425"]
[TimeControl "180+1"]
[EndTime "11:25:53 PST"]
[Termination "RobertoJBM won by resignation"]

1. d4 {[%clk 0:03:00.9]} 1... d5 {[%clk 0:02:58]} 2. c4 {[%clk 0:03:00.4]} 2...
dxc4 {[%clk 0:02:58.7]} 3. Nf3 {[%clk 0:02:59.8]} 3... Nf6 {[%clk 0:02:59]} 4.
e3 {[%clk 0:03:00.3]} 4... e6 {[%clk 0:02:59.6]} 5. Bxc4 {[%clk 0:02:59.9]} 5...
c5 {[%clk 0:03:00.2]} 6. O-O {[%clk 0:02:58.3]} 6... a6 {[%clk 0:03:00.2]} 7. a4
{[%clk 0:02:58.2]} 7... Nc6 {[%clk 0:02:59.4]} 8. Qe2 {[%clk 0:02:57.8]} 8...
Be7 {[%clk 0:02:52.3]} 9. Rd1 {[%clk 0:02:57.9]} 9... O-O {[%clk 0:02:51.4]} 10.
Nc3 {[%clk 0:02:57.9]} 10... Qc7 {[%clk 0:02:49.9]} 11. Bd2 {[%clk 0:02:49]}
11... b6 {[%clk 0:02:48.6]} 12. Be1 {[%clk 0:02:48.2]} 12... Bb7 {[%clk
0:02:47.7]} 13. Rac1 {[%clk 0:02:47.9]} 13... Rfd8 {[%clk 0:02:40.6]} 14. h3
{[%clk 0:02:43.1]} 14... h6 {[%clk 0:02:39.4]} 15. d5 {[%clk 0:02:31.4]} 15...
exd5 {[%clk 0:02:35.5]} 16. Nxd5 {[%clk 0:02:32.3]} 16... Nxd5 {[%clk
0:02:35.6]} 17. Bxd5 {[%clk 0:02:30.5]} 17... Nd4 {[%clk 0:02:14.2]} 18. Bxf7+
{[%clk 0:02:25.3]} 18... Kxf7 {[%clk 0:02:13.4]} 19. exd4 {[%clk 0:02:26.2]}
19... Qf4 {[%clk 0:01:53.1]} 20. Ne5+ {[%clk 0:02:17.9]} 20... Kg8 {[%clk
0:01:47.9]} 21. Ng6 {[%clk 0:02:14.1]} 21... Qg5 {[%clk 0:01:46.3]} 22. Nxe7+
{[%clk 0:02:06.1]} 22... Kh8 {[%clk 0:01:45.8]} 23. f4 {[%clk 0:02:01.4]} 23...
Qxf4 {[%clk 0:01:36]} 24. Ng6+ {[%clk 0:02:00]} 1-0

[Event "*** Titled Tuesday Blitz"]
[Site "Chess.com"]
[Date "2021.02.16"]
[Round "8"]
[White "Taktikmonster"]
[Black "Kapibara_Warri0r"]
[Result "1-0"]
[WhiteElo "2351"]
[BlackElo "2181"]
[TimeControl "180+1"]
[EndTime "11:26:12 PST"]
[Termination "Taktikmonster won by checkmate"]

1. e4 {[%clk 0:03:00.9]} 1... e5 {[%clk 0:02:58.3]} 2. Nf3 {[%clk 0:03:01.4]}
2... Nc6 {[%clk 0:02:50.9]} 3. Bc4 {[%clk 0:03:01.4]} 3... Nf6 {[%clk
0:02:50.4]} 4. d3 {[%clk 0:03:01.3]} 4... Be7 {[%clk 0:02:49]} 5. O-O {[%clk
0:03:00.8]} 5... O-O {[%clk 0:02:48.1]} 6. a4 {[%clk 0:03:00.4]} 6... a5 {[%clk
0:02:46]} 7. Nc3 {[%clk 0:03:00.2]} 7... d6 {[%clk 0:02:44.1]} 8. Re1 {[%clk
0:02:55.6]} 8... Kh8 {[%clk 0:02:44.2]} 9. h3 {[%clk 0:02:53.8]} 9... Ng8 {[%clk
0:02:44.1]} 10. Nd5 {[%clk 0:02:54.1]} 10... f5 {[%clk 0:02:42.9]} 11. c3 {[%clk
0:02:35.6]} 11... f4 {[%clk 0:02:42.2]} 12. d4 {[%clk 0:02:33.8]} 12... g5
{[%clk 0:02:37.2]} 13. dxe5 {[%clk 0:02:32.9]} 13... dxe5 {[%clk 0:02:26.4]} 14.
b4 {[%clk 0:02:13.5]} 14... axb4 {[%clk 0:02:16.2]} 15. cxb4 {[%clk 0:02:14.4]}
15... g4 {[%clk 0:02:16.3]} 16. hxg4 {[%clk 0:02:00.3]} 16... Bxg4 {[%clk
0:02:17.2]} 17. Bb2 {[%clk 0:01:59]} 17... Bd6 {[%clk 0:02:06.2]} 18. b5 {[%clk
0:01:43.2]} 18... Na5 {[%clk 0:01:55]} 19. Nxe5 {[%clk 0:01:36.9]} 19... Bxd1
{[%clk 0:01:37.6]} 20. Ng6# {[%clk 0:01:25.1]} 1-0

[Event "*** Titled Tuesday Blitz"]
[Site "Chess.com"]
[Date "2021.02.16"]
[Round "8"]
[White "BairaKovanova"]
[Black "iulik86"]
[Result "1/2-1/2"]
[WhiteElo "2466"]
[BlackElo "2607"]
[TimeControl "180+1"]
[EndTime "11:26:32 PST"]
[Termination "Game drawn by repetition"]

1. e4 {[%clk 0:03:00.9]} 1... c6 {[%clk 0:02:59.6]} 2. d4 {[%clk 0:02:58.9]}
2... d5 {[%clk 0:02:59]} 3. Nc3 {[%clk 0:02:59.6]} 3... a6 {[%clk 0:02:59.1]} 4.
Nf3 {[%clk 0:02:57.8]} 4... Bg4 {[%clk 0:02:58.8]} 5. Be2 {[%clk 0:02:54.8]}
5... e6 {[%clk 0:02:58.3]} 6. Ne5 {[%clk 0:02:47.6]} 6... Bxe2 {[%clk
0:02:57.4]} 7. Qxe2 {[%clk 0:02:48.2]} 7... Nf6 {[%clk 0:02:55.9]} 8. exd5
{[%clk 0:02:42.1]} 8... cxd5 {[%clk 0:02:55.2]} 9. O-O {[%clk 0:02:42.5]} 9...
Nc6 {[%clk 0:02:50.3]} 10. Nxc6 {[%clk 0:02:40.5]} 10... bxc6 {[%clk 0:02:51.2]}
11. Na4 {[%clk 0:02:40.5]} 11... Qb8 {[%clk 0:02:40]} 12. c4 {[%clk 0:02:37]}
12... Bd6 {[%clk 0:02:36.4]} 13. h3 {[%clk 0:02:36.2]} 13... O-O {[%clk
0:02:33.8]} 14. c5 {[%clk 0:02:34.8]} 14... Bc7 {[%clk 0:02:33.5]} 15. Nc3
{[%clk 0:02:31.8]} 15... a5 {[%clk 0:02:25.2]} 16. Bg5 {[%clk 0:02:31.1]} 16...
Nd7 {[%clk 0:02:24.8]} 17. Rad1 {[%clk 0:02:23.3]} 17... Re8 {[%clk 0:02:24.4]}
18. Qg4 {[%clk 0:02:20.3]} 18... Qxb2 {[%clk 0:02:10.8]} 19. Bh6 {[%clk
0:02:16.8]} 19... g6 {[%clk 0:02:10.6]} 20. Rd3 {[%clk 0:02:07.9]} 20... Nf6
{[%clk 0:01:52.5]} 21. Qf3 {[%clk 0:01:59.9]} 21... Bd8 {[%clk 0:01:44.6]} 22.
Rb1 {[%clk 0:01:53.5]} 22... Qc2 {[%clk 0:01:39.3]} 23. Rc1 {[%clk 0:01:28.1]}
23... Qb2 {[%clk 0:01:35.2]} 24. Rb1 {[%clk 0:01:28.2]} 24... Qc2 {[%clk
0:01:35]} 25. Rc1 {[%clk 0:01:28.4]} 25... Qb2 {[%clk 0:01:30.9]} 26. Rb1 {[%clk
0:01:28.1]} 1/2-1/2

[Event "*** Titled Tuesday Blitz"]
[Site "Chess.com"]
[Date "2021.02.16"]
[Round "8"]
[White "Aslanov_Umid"]
[Black "KeithArkell"]
[Result "1-0"]
[WhiteElo "2372"]
[BlackElo "2524"]
[TimeControl "180+1"]
[EndTime "11:26:35 PST"]
[Termination "Aslanov_Umid won by resignation"]

1. e4 {[%clk 0:03:00.9]} 1... c6 {[%clk 0:02:58.9]} 2. d4 {[%clk 0:03:00.3]}
2... d5 {[%clk 0:02:59]} 3. Nd2 {[%clk 0:03:00.8]} 3... dxe4 {[%clk 0:02:58.8]}
4. Nxe4 {[%clk 0:03:01.6]} 4... Nd7 {[%clk 0:02:59.3]} 5. Nf3 {[%clk 0:03:01.2]}
5... Ngf6 {[%clk 0:02:59.4]} 6. Ng3 {[%clk 0:03:01.8]} 6... c5 {[%clk
0:02:59.1]} 7. d5 {[%clk 0:02:58.8]} 7... Nb6 {[%clk 0:02:58.7]} 8. c4 {[%clk
0:02:59.1]} 8... e6 {[%clk 0:02:58.9]} 9. Bg5 {[%clk 0:02:45.5]} 9... exd5
{[%clk 0:02:57.9]} 10. cxd5 {[%clk 0:02:45.5]} 10... Nbxd5 {[%clk 0:02:52.7]}
11. Bb5+ {[%clk 0:02:45.7]} 11... Bd7 {[%clk 0:02:52.5]} 12. Bxd7+ {[%clk
0:02:45.5]} 12... Qxd7 {[%clk 0:02:51.4]} 13. O-O {[%clk 0:02:44.7]} 13... Be7
{[%clk 0:02:50.5]} 14. Ne5 {[%clk 0:02:39.4]} 14... Qb5 {[%clk 0:02:05.4]} 15.
Nf5 {[%clk 0:02:20.6]} 15... O-O {[%clk 0:01:24.6]} 16. Bxf6 {[%clk 0:02:16.6]}
16... gxf6 {[%clk 0:01:23.8]} 17. Qxd5 {[%clk 0:02:13.9]} 17... fxe5 {[%clk
0:01:10]} 18. Qxe5 {[%clk 0:01:49.4]} 18... f6 {[%clk 0:00:58.9]} 19. Qxe7
{[%clk 0:01:48.1]} 1-0

[Event "*** Titled Tuesday Blitz"]
[Site "Chess.com"]
[Date "2021.02.16"]
[Round "8"]
[White "Supernotar"]
[Black "PavelChernomordik"]
[Result "1/2-1/2"]
[WhiteElo "2730"]
[BlackElo "2393"]
[TimeControl "180+1"]
[EndTime "11:26:55 PST"]
[Termination "Game drawn by agreement"]

1. d4 {[%clk 0:03:00.9]} 1... g6 {[%clk 0:02:58.2]} 2. c3 {[%clk 0:03:01.2]}
2... Bg7 {[%clk 0:02:58.1]} 3. Nf3 {[%clk 0:03:02.1]} 3... d6 {[%clk 0:02:57.9]}
4. Bf4 {[%clk 0:03:03]} 4... Nd7 {[%clk 0:02:57.4]} 5. h3 {[%clk 0:03:02.8]}
5... e5 {[%clk 0:02:57]} 6. Bh2 {[%clk 0:03:03.1]} 6... Qe7 {[%clk 0:02:56.5]}
7. e3 {[%clk 0:03:03.3]} 7... Nh6 {[%clk 0:02:54.3]} 8. Be2 {[%clk 0:03:03.7]}
8... O-O {[%clk 0:02:53.9]} 9. O-O {[%clk 0:03:03.9]} 9... f5 {[%clk 0:02:53.4]}
10. a4 {[%clk 0:03:04.1]} 10... g5 {[%clk 0:02:45.8]} 11. a5 {[%clk 0:03:04]}
11... a6 {[%clk 0:02:43]} 12. Qb3+ {[%clk 0:03:04]} 12... Kh8 {[%clk 0:02:40.5]}
13. dxe5 {[%clk 0:03:04.1]} 13... dxe5 {[%clk 0:02:38.3]} 14. Na3 {[%clk
0:03:04.2]} 14... Nc5 {[%clk 0:02:33]} 15. Qb4 {[%clk 0:02:58.7]} 15... g4
{[%clk 0:02:17.9]} 16. hxg4 {[%clk 0:02:57.9]} 16... Nxg4 {[%clk 0:02:11.1]} 17.
Bg3 {[%clk 0:02:56]} 17... Bf6 {[%clk 0:02:05.6]} 18. Rad1 {[%clk 0:02:40.3]}
18... Be6 {[%clk 0:01:53.1]} 19. Nc4 {[%clk 0:02:31]} 19... Bf7 {[%clk
0:01:42.2]} 20. Rd2 {[%clk 0:02:14.2]} 20... Rae8 {[%clk 0:01:41]} 21. Rfd1
{[%clk 0:02:13]} 21... Ne4 {[%clk 0:01:39.1]} 22. Rd7 {[%clk 0:02:01.7]} 22...
Qxb4 {[%clk 0:01:33.7]} 23. cxb4 {[%clk 0:02:02.6]} 23... Nxg3 {[%clk
0:01:32.7]} 24. fxg3 {[%clk 0:02:03.3]} 24... Bxc4 {[%clk 0:01:30.3]} 25. Bxc4
{[%clk 0:02:02.5]} 25... Nxe3 {[%clk 0:01:30.5]} 26. Rc1 {[%clk 0:01:58.3]}
26... e4 {[%clk 0:01:27.9]} 1/2-1/2

[Event "*** Titled Tuesday Blitz"]
[Site "Chess.com"]
[Date "2021.02.16"]
[Round "8"]
[White "mirochka"]
[Black "karenzadita"]
[Result "1-0"]
[WhiteElo "2281"]
[BlackElo "2365"]
[TimeControl "180+1"]
[EndTime "11:26:56 PST"]
[Termination "mirochka won by resignation"]

1. e4 {[%clk 0:03:00.9]} 1... c5 {[%clk 0:02:59.7]} 2. b4 {[%clk 0:02:59]} 2...
cxb4 {[%clk 0:02:51.7]} 3. a3 {[%clk 0:02:58.5]} 3... e6 {[%clk 0:02:48.1]} 4.
axb4 {[%clk 0:02:58]} 4... Bxb4 {[%clk 0:02:46.7]} 5. c3 {[%clk 0:02:58.6]} 5...
Be7 {[%clk 0:02:40.7]} 6. d4 {[%clk 0:02:59.1]} 6... d6 {[%clk 0:02:38.5]} 7.
Bd3 {[%clk 0:02:58.5]} 7... Nf6 {[%clk 0:02:38.6]} 8. f4 {[%clk 0:02:53]} 8...
b6 {[%clk 0:02:31.6]} 9. Nf3 {[%clk 0:02:50.7]} 9... Bb7 {[%clk 0:02:31.6]} 10.
Qe2 {[%clk 0:02:50]} 10... h6 {[%clk 0:02:26.6]} 11. O-O {[%clk 0:02:48.1]}
11... Nbd7 {[%clk 0:02:24.8]} 12. e5 {[%clk 0:02:28.9]} 12... Nd5 {[%clk
0:02:18.5]} 13. f5 {[%clk 0:02:19.7]} 13... Nf8 {[%clk 0:02:01.7]} 14. Bb5+
{[%clk 0:01:41.4]} 14... Nd7 {[%clk 0:01:59.7]} 15. fxe6 {[%clk 0:01:41.3]}
15... fxe6 {[%clk 0:01:59.1]} 16. exd6 {[%clk 0:01:35.7]} 16... Bxd6 {[%clk
0:00:56.4]} 17. Qxe6+ {[%clk 0:01:34.2]} 17... Be7 {[%clk 0:00:55.8]} 18. Qg6+
{[%clk 0:01:28.3]} 1-0

[Event "*** Titled Tuesday Blitz"]
[Site "Chess.com"]
[Date "2021.02.16"]
[Round "8"]
[White "Beca95"]
[Black "agartha01"]
[Result "1/2-1/2"]
[WhiteElo "2886"]
[BlackElo "2476"]
[TimeControl "180+1"]
[EndTime "11:26:57 PST"]
[Termination "Game drawn by agreement"]

1. d4 {[%clk 0:03:00.9]} 1... d5 {[%clk 0:02:59.1]} 2. c4 {[%clk 0:03:00.6]}
2... c6 {[%clk 0:02:58.8]} 3. Nf3 {[%clk 0:03:00.7]} 3... Nf6 {[%clk 0:02:58.7]}
4. Nc3 {[%clk 0:03:01]} 4... e6 {[%clk 0:02:58.7]} 5. Qd3 {[%clk 0:03:00.1]}
5... Nbd7 {[%clk 0:02:58.5]} 6. e4 {[%clk 0:02:57.7]} 6... dxe4 {[%clk
0:02:58.3]} 7. Nxe4 {[%clk 0:02:58.6]} 7... Nxe4 {[%clk 0:02:59]} 8. Qxe4 {[%clk
0:02:59.5]} 8... Nf6 {[%clk 0:02:59.6]} 9. Qc2 {[%clk 0:02:57.5]} 9... Bb4+
{[%clk 0:02:47.3]} 10. Bd2 {[%clk 0:02:57.4]} 10... Qa5 {[%clk 0:02:45.9]} 11.
Bd3 {[%clk 0:02:51.9]} 11... Bxd2+ {[%clk 0:02:45]} 12. Qxd2 {[%clk 0:02:52.8]}
12... Qxd2+ {[%clk 0:02:44.3]} 13. Kxd2 {[%clk 0:02:53.7]} 13... O-O {[%clk
0:02:40.4]} 14. Kc3 {[%clk 0:02:53.9]} 14... Rd8 {[%clk 0:02:40.1]} 15. h3
{[%clk 0:02:50.9]} 15... b6 {[%clk 0:02:40.2]} 16. Ne5 {[%clk 0:02:47.1]} 16...
Bb7 {[%clk 0:02:40]} 17. Rhe1 {[%clk 0:02:46.7]} 17... Nd7 {[%clk 0:02:30.2]}
18. Rad1 {[%clk 0:02:37.8]} 18... Nxe5 {[%clk 0:02:28.2]} 19. dxe5 {[%clk
0:02:37]} 19... c5 {[%clk 0:02:28.1]} 20. f3 {[%clk 0:02:35.1]} 20... h6 {[%clk
0:02:24.3]} 21. Bc2 {[%clk 0:02:31.5]} 21... Kf8 {[%clk 0:02:22.6]} 22. h4
{[%clk 0:02:31.8]} 22... Ke7 {[%clk 0:02:22.2]} 23. h5 {[%clk 0:02:30.9]} 23...
Rxd1 {[%clk 0:02:21.5]} 24. Rxd1 {[%clk 0:02:31.8]} 24... Rd8 {[%clk 0:02:21.5]}
25. Rxd8 {[%clk 0:02:31.4]} 25... Kxd8 {[%clk 0:02:22.4]} 26. Kd2 {[%clk
0:02:31.8]} 26... Ke7 {[%clk 0:02:22.3]} 27. Ke3 {[%clk 0:02:32]} 27... f6
{[%clk 0:02:14.6]} 28. Kf4 {[%clk 0:02:31.7]} 28... f5 {[%clk 0:02:11.8]} 29. g4
{[%clk 0:02:01]} 29... fxg4 {[%clk 0:02:11.1]} 30. fxg4 {[%clk 0:02:01.9]} 30...
Bc6 {[%clk 0:02:06.7]} 31. Ke3 {[%clk 0:01:55.1]} 31... Bb7 {[%clk 0:02:00.9]}
32. a3 {[%clk 0:01:54.1]} 32... Bc6 {[%clk 0:02:00.9]} 33. b4 {[%clk 0:01:52.8]}
33... Bb7 {[%clk 0:01:43.3]} 34. Be4 {[%clk 0:01:45.2]} 34... Bxe4 {[%clk
0:01:37.7]} 35. Kxe4 {[%clk 0:01:46.1]} 35... Kd7 {[%clk 0:01:32]} 36. b5 {[%clk
0:01:39.2]} 36... Ke7 {[%clk 0:01:31]} 1/2-1/2

[Event "*** Titled Tuesday Blitz"]
[Site "Chess.com"]
[Date "2021.02.16"]
[Round "8"]
[White "sara_khm"]
[Black "AlexTriapishko"]
[Result "1-0"]
[WhiteElo "2662"]
[BlackElo "2820"]
[TimeControl "180+1"]
[EndTime "11:27:19 PST"]
[Termination "sara_khm won by resignation"]

1. d4 {[%clk 0:03:00.9]} 1... d6 {[%clk 0:02:59]} 2. Nf3 {[%clk 0:03:00.5]} 2...
Nf6 {[%clk 0:02:58.8]} 3. g3 {[%clk 0:03:00.9]} 3... g6 {[%clk 0:02:58.2]} 4. c4
{[%clk 0:03:00.7]} 4... Bg7 {[%clk 0:02:58.2]} 5. Bg2 {[%clk 0:03:01.3]} 5...
O-O {[%clk 0:02:58.1]} 6. O-O {[%clk 0:03:01.9]} 6... c5 {[%clk 0:02:58.7]} 7.
dxc5 {[%clk 0:02:59.1]} 7... dxc5 {[%clk 0:02:58.9]} 8. Ne5 {[%clk 0:02:59.3]}
8... Nfd7 {[%clk 0:02:41.4]} 9. Nxd7 {[%clk 0:02:55.5]} 9... Nxd7 {[%clk
0:02:39.4]} 10. Nc3 {[%clk 0:02:44.6]} 10... Nb6 {[%clk 0:02:38.9]} 11. Qb3
{[%clk 0:02:42.5]} 11... Be6 {[%clk 0:02:37.3]} 12. Rd1 {[%clk 0:02:35.7]} 12...
Qc8 {[%clk 0:02:17.4]} 13. Nd5 {[%clk 0:02:35.7]} 13... Bxd5 {[%clk 0:02:15.6]}
14. cxd5 {[%clk 0:02:35.7]} 14... c4 {[%clk 0:02:14.9]} 15. Qa3 {[%clk
0:02:26.8]} 15... c3 {[%clk 0:01:50.1]} 16. bxc3 {[%clk 0:02:25.4]} 16... Bxc3
{[%clk 0:01:47.3]} 17. Rb1 {[%clk 0:02:16.8]} 17... Bf6 {[%clk 0:01:47.2]} 18.
Bf4 {[%clk 0:02:14.2]} 18... Nc4 {[%clk 0:01:46.4]} 19. Qb3 {[%clk 0:02:09.3]}
19... Nb6 {[%clk 0:01:18]} 20. e4 {[%clk 0:01:59.4]} 20... g5 {[%clk 0:01:05.1]}
21. Be3 {[%clk 0:01:53.6]} 21... Nc4 {[%clk 0:01:02.5]} 22. Rdc1 {[%clk
0:01:46.6]} 22... b5 {[%clk 0:00:33.1]} 23. Qxb5 {[%clk 0:01:45.7]} 23... Rb8
{[%clk 0:00:30.6]} 24. Qxb8 {[%clk 0:01:42.2]} 24... Qxb8 {[%clk 0:00:30.4]} 25.
Rxb8 {[%clk 0:01:42.7]} 25... Rxb8 {[%clk 0:00:31.3]} 26. Rxc4 {[%clk
0:01:42.7]} 1-0

[Event "*** Titled Tuesday Blitz"]
[Site "Chess.com"]
[Date "2021.02.16"]
[Round "8"]
[White "akhairat"]
[Black "canary2016"]
[Result "1-0"]
[WhiteElo "2332"]
[BlackElo "1965"]
[TimeControl "180+1"]
[EndTime "11:27:27 PST"]
[Termination "akhairat won by checkmate"]

1. e4 {[%clk 0:02:59.5]} 1... c5 {[%clk 0:02:54.6]} 2. Nf3 {[%clk 0:02:58.8]}
2... d6 {[%clk 0:02:54.6]} 3. d4 {[%clk 0:02:59.7]} 3... cxd4 {[%clk 0:02:54.1]}
4. Nxd4 {[%clk 0:03:00.5]} 4... Nf6 {[%clk 0:02:53.4]} 5. Nc3 {[%clk 0:03:00.7]}
5... a6 {[%clk 0:02:52.8]} 6. Bg5 {[%clk 0:02:57.9]} 6... e6 {[%clk 0:02:51.7]}
7. f4 {[%clk 0:02:50.9]} 7... h6 {[%clk 0:02:50.3]} 8. Bxf6 {[%clk 0:02:48.9]}
8... Qxf6 {[%clk 0:02:48.1]} 9. Qd2 {[%clk 0:02:49]} 9... Nc6 {[%clk 0:02:46.9]}
10. Nxc6 {[%clk 0:02:48.8]} 10... bxc6 {[%clk 0:02:46.5]} 11. O-O-O {[%clk
0:02:49.7]} 11... Qd8 {[%clk 0:02:45.1]} 12. Bc4 {[%clk 0:02:49.1]} 12... Be7
{[%clk 0:02:43.1]} 13. Kb1 {[%clk 0:02:44.7]} 13... d5 {[%clk 0:02:42.9]} 14.
exd5 {[%clk 0:02:41.6]} 14... cxd5 {[%clk 0:02:42.3]} 15. Bb3 {[%clk 0:02:41.2]}
15... Bd7 {[%clk 0:02:42.3]} 16. f5 {[%clk 0:02:40.8]} 16... O-O {[%clk
0:02:37.5]} 17. fxe6 {[%clk 0:02:36.9]} 17... fxe6 {[%clk 0:02:33.4]} 18. Rhe1
{[%clk 0:02:37]} 18... Bg5 {[%clk 0:02:29.4]} 19. Qd3 {[%clk 0:02:28.9]} 19...
Bf6 {[%clk 0:02:03.9]} 20. Nxd5 {[%clk 0:02:24.1]} 20... exd5 {[%clk 0:01:39.8]}
21. Qxd5+ {[%clk 0:02:24.9]} 21... Kh8 {[%clk 0:01:28.6]} 22. Qxd7 {[%clk
0:02:23.2]} 22... Qa5 {[%clk 0:01:25]} 23. Qd5 {[%clk 0:02:11.7]} 23... Rad8
{[%clk 0:01:19.5]} 24. Qxa5 {[%clk 0:02:10.7]} 24... Rxd1+ {[%clk 0:01:15.1]}
25. Rxd1 {[%clk 0:02:09.9]} 25... Re8 {[%clk 0:01:14.2]} 26. Qxa6 {[%clk
0:02:08.5]} 26... Rf8 {[%clk 0:01:07.7]} 27. Qc4 {[%clk 0:02:08]} 27... Bg5
{[%clk 0:01:05.2]} 28. a4 {[%clk 0:02:04.5]} 28... Re8 {[%clk 0:01:02.1]} 29. a5
{[%clk 0:02:02.6]} 29... Ra8 {[%clk 0:01:01.3]} 30. a6 {[%clk 0:02:02.8]} 30...
Bf6 {[%clk 0:00:58.4]} 31. h4 {[%clk 0:02:00.6]} 31... Rb8 {[%clk 0:00:53.8]}
32. h5 {[%clk 0:01:59.6]} 32... Ra8 {[%clk 0:00:53.9]} 33. g4 {[%clk 0:01:59.6]}
33... Rb8 {[%clk 0:00:53.7]} 34. a7 {[%clk 0:01:58.4]} 34... Ra8 {[%clk
0:00:53.6]} 35. Rd7 {[%clk 0:01:57.5]} 35... Bg5 {[%clk 0:00:52.4]} 36. Rb7
{[%clk 0:01:57]} 36... Bf4 {[%clk 0:00:51.3]} 37. Rb8+ {[%clk 0:01:56.2]} 37...
Rxb8 {[%clk 0:00:48.8]} 38. axb8=Q+ {[%clk 0:01:55.2]} 38... Bxb8 {[%clk
0:00:49.4]} 39. Qg8# {[%clk 0:01:55.1]} 1-0

[Event "*** Titled Tuesday Blitz"]
[Site "Chess.com"]
[Date "2021.02.16"]
[Round "8"]
[White "remi04"]
[Black "Eloist"]
[Result "1-0"]
[WhiteElo "2602"]
[BlackElo "2401"]
[TimeControl "180+1"]
[EndTime "11:27:30 PST"]
[Termination "remi04 won by resignation"]

1. e4 {[%clk 0:03:00.9]} 1... e6 {[%clk 0:03:00.1]} 2. d4 {[%clk 0:03:00.5]}
2... d5 {[%clk 0:03:00.2]} 3. Bd3 {[%clk 0:03:01.2]} 3... dxe4 {[%clk
0:02:59.5]} 4. Bxe4 {[%clk 0:03:02.1]} 4... Nf6 {[%clk 0:02:59.7]} 5. Bf3 {[%clk
0:03:02.7]} 5... c5 {[%clk 0:02:59.8]} 6. Ne2 {[%clk 0:03:03]} 6... Nc6 {[%clk
0:02:59.7]} 7. Be3 {[%clk 0:03:00.8]} 7... cxd4 {[%clk 0:02:59.5]} 8. Nxd4
{[%clk 0:03:00.8]} 8... Ne5 {[%clk 0:02:59.7]} 9. Nc3 {[%clk 0:03:00.3]} 9... a6
{[%clk 0:02:59.6]} 10. Qe2 {[%clk 0:02:59.7]} 10... Bb4 {[%clk 0:02:58.2]} 11.
O-O-O {[%clk 0:02:35.6]} 11... Qe7 {[%clk 0:02:32.8]} 12. Bd2 {[%clk 0:02:16]}
12... Nxf3 {[%clk 0:02:30.8]} 13. Qxf3 {[%clk 0:02:08.7]} 13... O-O {[%clk
0:02:26]} 14. Rhe1 {[%clk 0:02:08.1]} 14... Rd8 {[%clk 0:02:16.2]} 15. Nf5
{[%clk 0:02:01.1]} 15... Qf8 {[%clk 0:02:13.4]} 16. Nh6+ {[%clk 0:01:58.1]}
16... Kh8 {[%clk 0:02:04.2]} 17. Bg5 {[%clk 0:01:58.1]} 17... Rxd1+ {[%clk
0:01:06.6]} 18. Rxd1 {[%clk 0:01:59]} 18... Be7 {[%clk 0:01:00.7]} 19. Ne4
{[%clk 0:01:57.4]} 19... Nxe4 {[%clk 0:00:38.6]} 20. Bxe7 {[%clk 0:01:56.4]}
20... Qxe7 {[%clk 0:00:33.9]} 21. Rd8+ {[%clk 0:01:55.8]} 21... Qxd8 {[%clk
0:00:32.9]} 22. Nxf7+ {[%clk 0:01:56.2]} 22... Kg8 {[%clk 0:00:32.9]} 23. Nxd8
{[%clk 0:01:56.8]} 23... Nf6 {[%clk 0:00:23.8]} 24. g4 {[%clk 0:01:52.5]} 24...
e5 {[%clk 0:00:20.6]} 25. Qb3+ {[%clk 0:01:46.3]} 1-0